Cogmind - Beta 16 @@@ ROGUE MODE // 2025.10.30 @ 12:26:14 Player: Rocko1345 Result: Self-destructed Performance ------------- Evolutions (2) 1000 Regions Visited (3) 600 Robots Destroyed (19) 95 Value Destroyed (722) 722 Prototype IDs (0) 0 Alien Tech Used (0) 0 Bonus (0) 0 TOTAL SCORE: 2417 Bonus ------- None Cogmind --------- Core Integrity 303/550 Matter 285/300 Energy 50/100 System Corruption 4% Temperature Cool (17) Movement Hovering (56) Location -8/Materials Parts ------- > --- POWER (1) -------- (None) > --- PROPULSION (2) --- Gravmag System Gravmag System > --- UTILITY (6) ------ Improved Heat Sink Small Storage Unit Advanced Visual Processing Unit Hacking Suite > --- WEAPON (2) ------- Lightning Gun Lightning Gun > --- INVENTORY (8) ---- Light Treads Light Treads Gravmag System Gravmag System Small Laser Mining Laser Mining Claw Peak State ------------ > --- POWER ------------ Light Nuclear Core > --- PROPULSION ------- Gravmag System Gravmag System > --- UTILITY ---------- Improved Heat Sink Small Storage Unit Advanced Visual Processing Unit Hacking Suite > --- WEAPON ----------- Lightning Gun Lightning Gun > --- INVENTORY -------- Light Treads Light Treads Gravmag System Gravmag System Small Laser Mining Laser Mining Claw [Rating: 30] Favorites ----------- Power Ion Engine Engine Ion Engine Power Core Light Nuclear Core Propulsion Aluminum Leg Leg Aluminum Leg Wheel Subdweller Monowheel Hover Unit Gravmag System Utility Small Storage Unit Device Improved Heat Sink Storage Small Storage Unit Processor Advanced Visual Processing Unit Hackware Hacking Suite Protection Heavy Armor Plating Weapon Light Assault Rifle Energy Gun Lightning Gun Ballistic Gun Light Assault Rifle Build | -11 -10 -10 -8 ------- Run | Yrd Mat Sub Mat Slots Evolved 4 | . . . 4 Power . | . . . . Propulsion . | . . . . Utility 4 | . . . 4 Weapon . | . . . . Parts Attached 28 | 6 4 3 15 Power 3 | 1 1 . 1 Engine 2 | 1 1 . . Core 1 | . . . 1 Reactor . | . . . . Propulsion 8 | 2 2 2 2 Treads . | . . . . Leg 4 | 2 2 . . Wheel 2 | . . 2 . Hover 2 | . . . 2 Flight . | . . . . Utility 6 | 1 . . 5 Device 1 | . . . 1 Storage 1 | 1 . . . Processor 1 | . . . 1 Hackware 1 | . . . 1 Protection 2 | . . . 2 Artifact . | . . . . Weapon 11 | 2 1 1 7 Energy Gun 7 | . . 1 6 Energy Cannon . | . . . . Ballistic Gun 4 | 2 1 . 1 Ballistic Cannon . | . . . . Launcher . | . . . . Special Weapon . | . . . . Impact Weapon . | . . . . Slashing Weapon . | . . . . Piercing Weapon . | . . . . Special Melee Weapon . | . . . . Unidentified Prototypes . | . . . . Corrupted Parts 1 | . . . 1 System Corruption 4 | . . . 4 Parts Lost 9 | . . 2 7 Power 2 | . . . 2 Propulsion 2 | . . 1 1 Utility 2 | . . . 2 Weapon 3 | . . 1 2 Highest Loss Streak 6 | . . 2 6 To Critical Strikes 1 | . . 1 . Average Backups 6 | 1 5 6 5 Power . | . . . . Propulsion 2 | 1 3 2 2 Utility . | . . . . Weapon 3 | . 1 3 3 Tool/Special . | . . . . Unused Backups 7 | . . . 7 Power . | . . . . Propulsion 4 | . . . 4 Utility . | . . . . Weapon 3 | . . . 3 Tool/Special . | . . . . Average Slot Usage (%) 81 | . 85 84 72 Engine 11 | . 14 14 5 Leg 19 | . 28 25 . Wheel 3 | . . 1 10 Hover 1 | . . . 6 Device 1 | . . . 3 Storage 12 | . 14 14 9 Processor 2 | . . . 7 Protection 2 | . . . 8 Energy Gun 4 | . . 1 13 Ballistic Gun 20 | . 28 26 3 Peak Build Rating 30 | 6 6 8 30 Average Rating 10 | 3 6 6 22 On Entrance 5 | . 6 6 8 Avg Prop Armor Cover (%) . | . . . . Naked Turns . | . . . . Heaviest Build 48 | 10 13 13 48 Greatest Support 40 | 20 20 40 40 Greatest Overweight (x) 2 | . . 1 2 Average Overweight (x) . | . . . . Largest Inventory Capacity 8 | 8 8 8 8 Average Capacity 7 | 6 8 8 8 Most Carried 8 | 2 8 8 8 Average Carried 6 | 1 5 6 5 Final Capacity 8 | 8 8 8 8 Final Carried 8 | 2 8 5 7 Class Distribution -------------------- 96% | Mutant 3% | Scavenger-Mutant Dominant Class ---------------- Mutant | -10/Materials Mutant | -10/Subcaves Mutant | -8/Materials Resources | -11 -10 -10 -8 ----------- Run | Yrd Mat Sub Mat Matter Collected 588 | 194 142 97 155 Remotely . | . . . . Salvage Created 832 | . 203 110 519 Parts 33 | . 10 2 21 Haulers Intercepted . | . . . . Recyclers Shooed 3 | . 2 . 1 Parts Field Recycled . | . . . . Retrieved Matter . | . . . . Parts Self-Destructed 6 | . . 6 . Prevented . | . . . . Parts Restored . | . . . . Kills | -11 -10 -10 -8 ------- Run | Yrd Mat Sub Mat Combat Hostiles Destroyed 16 | . 4 3 9 Guns 15 | . 4 3 8 Classes Destroyed 8 | . 3 2 3 Mechanic 1 | . 1 . . Operator 1 | . 1 . . Watcher 1 | . . . 1 Swarmer 1 | . . 1 . Grunt 11 | . 4 . 7 Sentry 1 | . . . 1 Hunter 1 | . . . 1 Subdweller 2 | . . 2 . Best Kill Streak 4 | . 3 2 4 Combat Bots Only 4 | . 2 2 4 Max Kills in Single Turn 2 | . 2 1 1 Gunslinging . | . . . . Exploded . | . . . . Melee . | . . . . Uniques/NPCs Destroyed . | . . . . Combat | -11 -10 -10 -8 -------- Run | Yrd Mat Sub Mat Hostile Shots Fired 170 | . 29 24 117 Missed 36 | . 8 4 24 Hits 134 | . 21 20 93 Projectile 134 | . 21 20 93 Critical Strikes 6 | . . 1 5 Damage Taken 2026 | . 260 334 1432 Core 369 | . 23 99 247 Absorbed by Shields . | . . . . Core Remaining (%) 75 | 100 . 51 . Volleys Fired 81 | . 29 14 38 Largest 2 | . 2 2 2 Hottest 110 | . 40 60 110 Shots Fired 160 | . 58 28 74 Gun 160 | . 58 28 74 Cannon . | . . . . Launcher . | . . . . Special . | . . . . Kinetic 92 | . 58 25 9 Thermal 31 | . . 3 28 Explosive . | . . . . Electromagnetic 37 | . . . 37 Robot Hit Streak 12 | . 11 8 12 Robot Miss Streak 4 | . 3 2 4 Penetration Max . | . . . . Secondary Targets 2 | . . 1 1 Max Gunslinging Chain 1 | . . 1 1 Shots Hit Robots 110 | . 38 19 53 Core Hits 42 | . 14 6 22 Critical Kills . | . . . . Critical Parts Destroyed . | . . . . Critical Strikes 1 | . . . 1 Corrupt 1 | . . . 1 Melee Attacks . | . . . . Impact . | . . . . Slashing . | . . . . Piercing . | . . . . Sneak Attacks . | . . . . Combat Hostiles . | . . . . Follow-up Attacks . | . . . . Damage Inflicted 1696 | . 328 208 1160 Guns 1504 | . 328 208 968 Cannons . | . . . . Explosions 177 | . . . 177 Melee . | . . . . Ramming 15 | . . . 15 Kinetic 607 | . 328 198 81 Thermal 462 | . . 10 452 Explosive . | . . . . Electromagnetic 612 | . . . 612 Impact . | . . . . Slashing . | . . . . Piercing . | . . . . Highest Corruption 4 | . . . 4 Average Corruption 4 | . . . 4 Corruption Purged . | . . . . Corruption Blocked . | . . . . Effects 7 | . . . 7 Message Errors 3 | . . . 3 Matter Fused 1 | . . . 1 Heat Flow Errors 1 | . . . 1 Energy Discharges 1 | . . . 1 Weapon Failures 1 | . . . 1 Overload Shots . | . . . . Overflow Damage 4 | . . . 4 Projectiles . | . . . . Explosions 4 | . . . 4 Melee . | . . . . Knockbacks . | . . . . Impact . | . . . . Kinetic . | . . . . Secondary . | . . . . Self-Inflicted Damage 7 | . . . 7 Shots . | . . . . Rammed 3 | . . . 3 Targets Rammed 3 | . . . 3 Kicked . | . . . . Crushed . | . . . . Highest Temperature 352 | . 18 . 352 Average Temperature 118 | . 9 . 141 Received Heat Transfer 924 | . 147 12 765 Effects 3 | . . . 3 Interference 3 | . . . 3 Siege Activations . | . . . . Martial Activations . | . . . . Shielding Activations . | . . . . Robots Disrupted . | . . . . Combat Hostiles . | . . . . Robots Corrupted 1 | . . . 1 Combat Hostiles 1 | . . . 1 Parts Fried 7 | . . . 7 Impact Corruptions . | . . . . Robots Melted . | . . . . Combat Hostiles . | . . . . Parts Melted 1 | . . . 1 Heat Transferred 968 | . . 25 943 Parts Sabotaged . | . . . . Parts Stolen . | . . . . Parts Stripped . | . . . . Power Chain Reactions 1 | . . . 1 Alert | -11 -10 -10 -8 ------- Run | Yrd Mat Sub Mat Maximum Alert Level . | . . . . Low Security (%) 100 | 100 100 . 100 Level 1 . | . . . . Level 2 . | . . . . Level 3 . | . . . . Level 4 . | . . . . Level 5 . | . . . . High Security . | . . . . Max Security . | . . . . Peak Influence 140 | . 85 . 140 Initial . | . . . . Average 30 | . 27 . 36 Influence Increases 496 | . 134 20 342 Destroy 0b10 Robot/C 280 | . 80 20 180 Destroy 0b10 Robot/NC 15 | . 10 . 5 Destroy Leader 62 | . 20 . 42 Successful Hack 32 | . 9 . 23 Destroy Structure 2 | . . . 2 Partial Spotted 15 | . . . 15 Lose Combat Pursuer 90 | . 15 . 75 Influence Decreases 382 | . 134 20 228 Time Decay 332 | . 134 20 178 Lost Part 50 | . . . 50 Squads Dispatched 3 | . 1 . 2 Investigation 1 | . . . 1 Extermination . | . . . . Reinforcement 2 | . 1 . 1 Assault . | . . . . Garrison . | . . . . Intercept . | . . . . Searches Triggered . | . . . . Construction Impeded . | . . . . Haulers Reinforced . | . . . . Active Scanning Responses . | . . . . Cargo Convoy Interrupts . | . . . . Stealth | -11 -10 -10 -8 --------- Run | Yrd Mat Sub Mat Distress Signals . | . . . . Communications Jammed . | . . . . Distress Signals . | . . . . Times Spotted 34 | . 9 3 22 Peak Tracking Total 5 | . 3 2 5 Tactical Retreats 3 | . 1 . 2 Traps | -11 -10 -10 -8 ------- Run | Yrd Mat Sub Mat Traps Triggered 1 | . . 1 . Indirectly . | . . . . Trap Hack Attempts . | . . . . Triggered . | . . . . Disarmed 6 | . 6 . . Reprogrammed . | . . . . Reused . | . . . . Traps Extracted . | . . . . Installed . | . . . . Triggered . | . . . . Machines | -11 -10 -10 -8 ---------- Run | Yrd Mat Sub Mat Machines Disabled . | . . . . Max in Single Turn . | . . . . Machines Repaired . | . . . . Machines Dismantled . | . . . . Machines Sabotaged . | . . . . Overloaded Fab Kills . | . . . . Hacking | -11 -10 -10 -8 --------- Run | Yrd Mat Sub Mat Machines Accessed 6 | . 3 . 3 Terminals 6 | . 3 . 3 Fabricators . | . . . . Repair Stations . | . . . . Recycling Units . | . . . . Scanalyzers . | . . . . Garrison Access . | . . . . Total Hacks 18 | . 5 . 13 Successful 10 | . 4 . 6 Failed 8 | . 1 . 7 Catastrophic 3 | . . . 3 Database Lockouts . | . . . . Manual 8 | . 2 . 6 Terminals 18 | . 5 . 13 Fabricators . | . . . . Repair Stations . | . . . . Recycling Units . | . . . . Scanalyzers . | . . . . Garrison Access . | . . . . Terminal Hacks 5 | . 2 . 3 Emergency Access Points 1 | . 1 . . Terminal Index 1 | . . . 1 Alert Level 1 | . . . 1 Locate Traps 1 | . . . 1 Disarm Traps 1 | . 1 . . Fabricator Hacks . | . . . . Repair Station Hacks . | . . . . Recycling Unit Hacks . | . . . . Scanalyzer . | . . . . Garrison Access Hacks . | . . . . Unauthorized Hacks 5 | . 2 . 3 Terminals 5 | . 2 . 3 Botnet 4 | . 2 . 2 Operators 1 | . . . 1 Fabricators . | . . . . Repair Stations . | . . . . Recycling Units . | . . . . Scanalyzers . | . . . . Garrison Access . | . . . . Data Cores Recovered . | . . . . Used . | . . . . Hacking Detections 6 | . 3 . 3 Full Trace Events 1 | . . . 1 Feedback Events . | . . . . Feedback Blocked . | . . . . Robot Schematics Acquired . | . . . . Robots Built . | . . . . Authchips . | . . . . Time . | . . . . Total Robot Build Rating . | . . . . Part Schematics Acquired . | . . . . Parts Built . | . . . . Authchips . | . . . . Time . | . . . . Total Part Build Rating . | . . . . Part Studies Acquired . | . . . . Parts Repaired . | . . . . Time . | . . . . Parts Recycled . | . . . . Recycled Matter . | . . . . Retrieved Matter . | . . . . Retrieved Components . | . . . . Parts Scanalyzed . | . . . . Part Schematics Acquired . | . . . . Parts Damaged . | . . . . Bothacking | -11 -10 -10 -8 ------------ Run | Yrd Mat Sub Mat Used RIF Installer . | . . . . Robots Hacked . | . . . . Non-combat . | . . . . Combat . | . . . . Robot Hacks Applied . | . . . . Relay Couplers Released . | . . . . Fabnet Peak Effective % . | . . . . Robots Rewired . | . . . . Allies Hacked . | . . . . Hacks Repelled . | . . . . Allies | -11 -10 -10 -8 -------- Run | Yrd Mat Sub Mat Total Allies . | . . . . Largest Group . | . . . . Highest-Rated Group . | . . . . Highest-Rated Ally . | . . . . Total Orders . | . . . . Ally Attacks . | . . . . Total Damage . | . . . . Kills . | . . . . Allies Corrupted . | . . . . Allies Melted . | . . . . Intel | -11 -10 -10 -8 ------- Run | Yrd Mat Sub Mat Active Infowar (turns) 438 | . . . 438 Optics 438 | . . . 438 Robot Analysis Total . | . . . . Derelict Logs Recovered 1 | . . 1 . Drone Launches . | . . . . Drone Recoveries . | . . . . Exploration | -11 -10 -10 -8 ------------- Run | Yrd Mat Sub Mat Turns Passed 1872 | 76 388 905 503 Spaces Moved 1348 | 59 249 720 320 Core 12 | 12 . . . Treads . | . . . . Legs 967 | 47 249 671 . Wheels 238 | . . 49 189 Hover 131 | . . . 131 Flight . | . . . . Fastest Speed 50 | 50 120 110 56 Average Speed 115 | 105 120 119 103 Slowest Speed 190 | 120 120 190 130 Overloaded Moves . | . . . . Propulsion Burnouts . | . . . . Robots Hopped . | . . . . Potential Cave-ins . | . . . . Cave-ins Triggered . | . . . . Exploration Rate (%) 30 | 4 49 43 24 Regions Visited 3 Branch Regions 1 Pre-discovered Areas 1 | . . 1 . Known Exits Taken . | . . . . Unknown Exits Taken 3 | 1 1 1 . Scrap Searched . | . . . . Spaces Dug . | . . . . Terrain Destroyed 2 | . . . 2 Melee . | . . . . Projectile . | . . . . AOE 2 | . . . 2 Terrain Rammed . | . . . . Walls Destroyed . | . . . . Machines Disabled . | . . . . Actions | -11 -10 -10 -8 --------- Run | Yrd Mat Sub Mat Total 1508 | 69 290 738 411 Wait 33 | 3 3 . 27 Move 1345 | 58 248 719 320 Hop . | . . . . Pick Up 9 | 2 4 . 3 Fast Attach 13 | 6 . 1 6 Attach 5 | . . 1 4 Detach 1 | . . . 1 Swap 13 | . 4 1 8 Drop 5 | . 2 2 1 Fire 81 | . 29 14 38 Melee . | . . . . Ram 3 | . . . 3 Kick . | . . . . Crush . | . . . . Escape Stasis . | . . . . Rewire . | . . . . Trap . | . . . . Miscellaneous . | . . . . Route ------- -11/Scrapyard -10/Materials (discovered 3 exits: [*Mat] / [*Min] / [*Sub]) -10/Subcaves -8/Materials History --------- Turn | Location | Event 3 | -11/Scrapyard | Discovered new exit (range 16) 77 | -11/Scrapyard | Entered Materials 221 | -10/Materials | Discovered new exit (range 16) 302 | -10/Materials | Discovered new exit (range 15) 314 | -10/Materials | Build established: Mutant 438 | -10/Materials | Discovered new exit (range 10) 465 | -10/Materials | Entered Subcaves 468 | -10/Subcaves | Learned Materials emergency access door positions 607 | -10/Subcaves | Learned location of Zion (-6) 607 | -10/Subcaves | Met a Zionite searching for "candidates" 1156 | -10/Subcaves | Discovered new exit (range 11) 1370 | -10/Subcaves | Entered Materials 1370 | -8/Materials | Evolved 4 slots: Utility x4 1682 | -8/Materials | Lost 6 parts (1p1n2u2w) 1873 | -8/Materials | Self-destructed Last Messages --------------- Found 6 traps in 1 array: 6x Blade Trap Map updated. 01812_ Acquired Hacking Suite. 01824_ R-06 Scavenger inserts Aluminum Leg into recycling unit. 01829_ Targeting Computer fried. 01829_ Lgt. Nuclear Core fried. 01829_ H-55 Commando destroyed. 01831_ Recycling unit begins recycling process. 01833_ R-06 Scavenger inserts Particle Gun into recycling unit. 01837_ R-06 Scavenger inserts Med. Laser into recycling unit. 01839_ R-06 Scavenger collects Corrupted Carbon-fiber Leg. 01840_ System corrupted: Heat flow error (+248). 01840_ R-06 Scavenger collects Carbon-fiber Leg. 01840_ R-06 Scavenger inserts Sml. Laser into recycling unit. 01841_ Recycling unit begins recycling process. 01843_ R-06 Scavenger inserts Corrupted Aluminum Leg into recycling unit. 01843_ R-06 Scavenger collects Corrupted Assault Rifle. 01846_ R-06 Scavenger inserts Aluminum Leg into recycling unit. 01869_ Lgt. Nuclear Core destroyed. Map ----- +----------------------------------------------------+ | ???????????????????### #?????????# # # | | ??????????????????? ?????????# # # | | ??????????????????? ??????????# # """ """ # | | ??????????????????? ?????????# / """ """ # | | ??????????????????? ?????????# # """ """ # | | ??????????????????? ?????????# # / | | ??????????????????# ########## # # | | ??????????????????# ###+####### | | ??????????????????# #?# #?????? | | ??????????????????# """ #?# #?????? | | ??????????????????# "Y #?# #?????? | | ??????????????????# """ """ #?# #?????? | | ??????????????????# % """ ####+###?# #?????? | | ??????????????????# """ #????????# #?????? | | ??????????????????# ^ #????#####+##????? | | ???????????#??????# #????# #????? | | ???????????# ?????# """^ """ +????# #????? | | ???????????# ?????# """ """ #????# """ #????? | | ???????????# ????# ^""" """ #????# """ #????? | | ???????????#! !???# #????# """ #????? | | ???????????? ??# ^ ^ ##???#/ #????? | | ????????????? ?# """ """ #???###+####????? | | ??????????# ???" # """ ^""" ##### #?????? | | ???????????# "?? # """ """ r g ####### | | ???????????# """? + g T | | ???????????# # @ g ####### | | ???????????# "" + ##### #?????? | | ???????????# "T ######## #???#######?????? | | ???????????# "" ?????????#########???????????????| | | ???????????# ?????????????????????????????????# | | | ???????????#???????????????????????????????????### | | | | | | | | | | | | | | | | | | | | | | | | | | | | | | | | | | | | | | | +----------------------------------------------------+ Best States ------------- Heat Dissipation 45 Energy Generation 14 Energy Capacity 250 Matter Stores 300 Matter Capacity 300 Sight Range 20 Terrain Scan Density 10 Armor Coverage 1200 Evasion (%) 55 Offensive Hacking 10 Item Schematics ----------------- None Robot Schematics ------------------ None Fabricated ------------ Nothing Repaired ---------- Nothing Studied --------- None Alien Tech Used ----------------- None Achievements -------------- None Challenges ------------ None Game ------ Seed ReinforcedRiotInterface Manual? 0 Play Time 00:17:28 Cumulative 214.1 hours Start 2025.10.30 @ 12:10:54 End 2025.10.30 @ 12:26:14 Sessions 1 Manual Loads 0 Difficulty Rogue Special Mode None Game No. 259 Rogue 85 Adventurer 174 Explorer 0 Win Type - Total 1 Types 1/0/0/0/0/0/0/0/0/0 Lore% 55 Gallery% 58 Achievement% 39 Wizard Run 0 Options --------- Layout 0 ASCII 0 Keyboard 1 Movement Numpad Keybinds 0 Fullscreen 1 Font 18/Terminus Map View 76x50 Zoom Use 0% Tactical HUD 1 Map Filters NONE Filters NONE Steam 1 RUN: b741b77a-442d-41a7-9cd4-47a614f4352d